[Event "Early-Titled-Tuesday-Blitz-April-02-2024"]
[Site "Chess.com"]
[Date "2024.04.02"]
[Round "4"]
[White "MalyDominator"]
[Black "Shield12"]
[Result "0-1"]
[WhiteElo "2619"]
[BlackElo "3020"]
[TimeControl "180+1"]
[EndTime "8:38:00 PDT"]
[Termination "Shield12 won on time"]

1. e4 {[%clk 0:02:53.2]} 1... g6 {[%clk 0:03:00.9]} 2. d4 {[%clk 0:02:53.1]}
2... Bg7 {[%clk 0:03:01.8]} 3. Nc3 {[%clk 0:02:53.7]} 3... d6 {[%clk 0:03:02]}
4. Nf3 {[%clk 0:02:52.4]} 4... a6 {[%clk 0:03:02.5]} 5. a4 {[%clk 0:02:51.6]}
5... Nf6 {[%clk 0:03:02.2]} 6. Be2 {[%clk 0:02:51.5]} 6... O-O {[%clk
0:03:01.5]} 7. O-O {[%clk 0:02:52.1]} 7... Nc6 {[%clk 0:03:02.1]} 8. d5 {[%clk
0:02:49.2]} 8... Nb4 {[%clk 0:03:02.1]} 9. a5 {[%clk 0:02:45.5]} 9... e6 {[%clk
0:03:01.8]} 10. dxe6 {[%clk 0:02:41.4]} 10... Bxe6 {[%clk 0:03:01.3]} 11. Nd4
{[%clk 0:02:40.7]} 11... Bd7 {[%clk 0:03:00.4]} 12. Bg5 {[%clk 0:02:39.8]} 12...
h6 {[%clk 0:02:58.7]} 13. Bh4 {[%clk 0:02:39.4]} 13... Re8 {[%clk 0:02:57.9]}
14. f3 {[%clk 0:02:15.2]} 14... d5 {[%clk 0:02:53.9]} 15. exd5 {[%clk
0:02:03.3]} 15... g5 {[%clk 0:02:52.2]} 16. Bf2 {[%clk 0:02:01.6]} 16... Nbxd5
{[%clk 0:02:51.9]} 17. Nxd5 {[%clk 0:02:00.7]} 17... Nxd5 {[%clk 0:02:52.8]} 18.
Bc4 {[%clk 0:02:00]} 18... Nf4 {[%clk 0:02:49.8]} 19. Re1 {[%clk 0:01:49.7]}
19... Qf6 {[%clk 0:02:47.9]} 20. c3 {[%clk 0:01:45.4]} 20... Rxe1+ {[%clk
0:02:33.1]} 21. Qxe1 {[%clk 0:01:45.1]} 21... Re8 {[%clk 0:02:31]} 22. Qd2
{[%clk 0:01:45.4]} 22... Qd6 {[%clk 0:02:22.1]} 23. Re1 {[%clk 0:01:32.3]} 23...
Rxe1+ {[%clk 0:02:19]} 24. Qxe1 {[%clk 0:01:31.9]} 24... Bf6 {[%clk 0:02:00.8]}
25. Qe4 {[%clk 0:01:23.3]} 25... c5 {[%clk 0:01:35.4]} 26. Nb3 {[%clk
0:01:09.5]} 26... Bc6 {[%clk 0:01:35.5]} 27. Qe1 {[%clk 0:01:00.9]} 27... g4
{[%clk 0:01:33.6]} 28. Bxc5 {[%clk 0:00:56.1]} 28... Qd7 {[%clk 0:01:33.7]} 29.
Qd2 {[%clk 0:00:51.5]} 29... Qf5 {[%clk 0:01:26.2]} 30. Nd4 {[%clk 0:00:46]}
30... Bxd4+ {[%clk 0:01:10.6]} 31. Qxd4 {[%clk 0:00:30.5]} 31... gxf3 {[%clk
0:01:10.3]} 32. Qd8+ {[%clk 0:00:27.9]} 32... Kh7 {[%clk 0:01:08.4]} 33. Qd1
{[%clk 0:00:01.2]} 33... Qxc5+ {[%clk 0:01:06.3]} 0-1

[Event "Early-Titled-Tuesday-Blitz-April-02-2024"]
[Site "Chess.com"]
[Date "2024.04.02"]
[Round "4"]
[White "krstulov_alex"]
[Black "promen1999"]
[Result "0-1"]
[WhiteElo "2670"]
[BlackElo "2895"]
[TimeControl "180+1"]
[EndTime "8:38:04 PDT"]
[Termination "promen1999 won by resignation"]

1. d4 {[%clk 0:02:57.8]} 1... d6 {[%clk 0:03:00.5]} 2. Nf3 {[%clk 0:02:57.8]}
2... g6 {[%clk 0:03:01.1]} 3. c4 {[%clk 0:02:58]} 3... Bg7 {[%clk 0:03:01.1]} 4.
Nc3 {[%clk 0:02:58.7]} 4... Bg4 {[%clk 0:02:58.4]} 5. e4 {[%clk 0:02:59.1]} 5...
Nc6 {[%clk 0:02:56.2]} 6. d5 {[%clk 0:02:57.9]} 6... Bxf3 {[%clk 0:02:55.9]} 7.
gxf3 {[%clk 0:02:58]} 7... Nd4 {[%clk 0:02:56.5]} 8. Be3 {[%clk 0:02:55.5]} 8...
c5 {[%clk 0:02:52.6]} 9. dxc6 {[%clk 0:02:54.4]} 9... Nxc6 {[%clk 0:02:52]} 10.
Be2 {[%clk 0:02:25.4]} 10... Nf6 {[%clk 0:02:50.7]} 11. Qd2 {[%clk 0:02:23.8]}
11... O-O {[%clk 0:02:49.9]} 12. h4 {[%clk 0:02:21.7]} 12... Rc8 {[%clk
0:02:43.2]} 13. f4 {[%clk 0:02:17.8]} 13... Na5 {[%clk 0:02:30.3]} 14. b3 {[%clk
0:02:16.9]} 14... b5 {[%clk 0:02:28.4]} 15. e5 {[%clk 0:02:08.7]} 15... dxe5
{[%clk 0:02:25.6]} 16. Qxd8 {[%clk 0:02:04.5]} 16... Rfxd8 {[%clk 0:02:25.5]}
17. fxe5 {[%clk 0:02:02.8]} 17... Nd7 {[%clk 0:02:10.4]} 18. Nxb5 {[%clk
0:01:45.9]} 18... Nxe5 {[%clk 0:02:10.1]} 19. Rd1 {[%clk 0:01:42.6]} 19... a6
{[%clk 0:02:07.2]} 20. Rxd8+ {[%clk 0:01:39.2]} 20... Rxd8 {[%clk 0:02:06.9]}
21. Nc7 {[%clk 0:01:38.7]} 21... Nac6 {[%clk 0:02:02.5]} 22. Nxa6 {[%clk
0:01:36.6]} 22... Nd4 {[%clk 0:01:46.6]} 23. Bxd4 {[%clk 0:01:30.8]} 23... Rxd4
{[%clk 0:01:47.5]} 24. Nc5 {[%clk 0:01:13.9]} 24... Nc6 {[%clk 0:01:41.3]} 25.
a3 {[%clk 0:01:04.4]} 25... Rd6 {[%clk 0:01:37.2]} 26. Rh3 {[%clk 0:01:02.5]}
26... Nd4 {[%clk 0:01:36.5]} 27. b4 {[%clk 0:00:48]} 27... f5 {[%clk 0:01:35.4]}
28. Rd3 {[%clk 0:00:45.2]} 28... e5 {[%clk 0:01:28.6]} 29. f3 {[%clk 0:00:41.2]}
29... Rc6 {[%clk 0:01:19.9]} 30. Kd1 {[%clk 0:00:30.9]} 30... Bf8 {[%clk
0:01:16.1]} 31. Nb3 {[%clk 0:00:28]} 31... Nxe2 {[%clk 0:01:12.7]} 32. Kxe2
{[%clk 0:00:27]} 32... Rxc4 {[%clk 0:01:13.3]} 33. Rd5 {[%clk 0:00:10.9]} 33...
e4 {[%clk 0:01:12.8]} 34. fxe4 {[%clk 0:00:11.2]} 34... Rxe4+ {[%clk 0:01:13]}
35. Kd3 {[%clk 0:00:11.8]} 35... Rxh4 {[%clk 0:01:13.6]} 36. b5 {[%clk 0:00:08]}
36... Bxa3 {[%clk 0:01:11.8]} 37. b6 {[%clk 0:00:08.6]} 37... Rb4 {[%clk
0:01:11.1]} 38. Rd8+ {[%clk 0:00:03.6]} 38... Kf7 {[%clk 0:01:10.8]} 39. Rd7+
{[%clk 0:00:04.5]} 39... Ke8 {[%clk 0:01:10.8]} 40. Rxh7 {[%clk 0:00:01.5]} 0-1

[Event "Early-Titled-Tuesday-Blitz-April-02-2024"]
[Site "Chess.com"]
[Date "2024.04.02"]
[Round "4"]
[White "tortorchess"]
[Black "KetiTsatsalashvili"]
[Result "1-0"]
[WhiteElo "2209"]
[BlackElo "2430"]
[TimeControl "180+1"]
[EndTime "8:38:07 PDT"]
[Termination "tortorchess won by checkmate"]

1. d4 {[%clk 0:03:00.9]} 1... Nf6 {[%clk 0:02:59.6]} 2. c4 {[%clk 0:02:59.7]}
2... e6 {[%clk 0:02:59.5]} 3. Nc3 {[%clk 0:02:59.4]} 3... d5 {[%clk 0:02:59.1]}
4. Nf3 {[%clk 0:02:59]} 4... c6 {[%clk 0:02:56.7]} 5. Bg5 {[%clk 0:02:58.7]}
5... h6 {[%clk 0:02:56.8]} 6. Bh4 {[%clk 0:02:57.6]} 6... Be7 {[%clk 0:02:57.2]}
7. e3 {[%clk 0:02:57.8]} 7... Nbd7 {[%clk 0:02:55.9]} 8. Bd3 {[%clk 0:02:57.7]}
8... O-O {[%clk 0:02:53.4]} 9. O-O {[%clk 0:02:57.2]} 9... dxc4 {[%clk
0:02:49.2]} 10. Bxc4 {[%clk 0:02:56.7]} 10... Nd5 {[%clk 0:02:49.4]} 11. Bxe7
{[%clk 0:02:49.5]} 11... Qxe7 {[%clk 0:02:48.6]} 12. e4 {[%clk 0:02:46.4]} 12...
Nxc3 {[%clk 0:02:47.5]} 13. bxc3 {[%clk 0:02:46.3]} 13... e5 {[%clk 0:02:40.5]}
14. Re1 {[%clk 0:02:34.1]} 14... Rd8 {[%clk 0:02:30.5]} 15. Qe2 {[%clk
0:02:29.4]} 15... exd4 {[%clk 0:02:24.5]} 16. cxd4 {[%clk 0:02:26.2]} 16... Nb6
{[%clk 0:02:23.6]} 17. Bb3 {[%clk 0:02:22.2]} 17... Bg4 {[%clk 0:02:22.5]} 18.
Rad1 {[%clk 0:02:21.5]} 18... Rd7 {[%clk 0:02:12.8]} 19. h3 {[%clk 0:02:18.8]}
19... Bxf3 {[%clk 0:02:12.7]} 20. Qxf3 {[%clk 0:02:19.7]} 20... Rad8 {[%clk
0:02:12.9]} 21. Qe3 {[%clk 0:02:12.8]} 21... Qb4 {[%clk 0:02:08.3]} 22. Qf4
{[%clk 0:01:48.1]} 22... a5 {[%clk 0:01:57.3]} 23. Rb1 {[%clk 0:01:41.4]} 23...
Qxd4 {[%clk 0:01:53.2]} 24. Red1 {[%clk 0:01:36.5]} 24... Qf6 {[%clk 0:01:31.4]}
25. Rxd7 {[%clk 0:01:27.4]} 25... Nxd7 {[%clk 0:01:01.9]} 26. Qc7 {[%clk
0:01:19.7]} 26... Ne5 {[%clk 0:00:53.5]} 27. Qxb7 {[%clk 0:01:13.3]} 27... Qg6
{[%clk 0:00:52.6]} 28. Kh1 {[%clk 0:01:07]} 28... Qxe4 {[%clk 0:00:49.5]} 29.
Rf1 {[%clk 0:01:02.1]} 29... Qf5 {[%clk 0:00:44.7]} 30. Qe7 {[%clk 0:00:54.5]}
30... Rd2 {[%clk 0:00:42]} 31. Kg1 {[%clk 0:00:47.6]} 31... g6 {[%clk
0:00:40.7]} 32. Qe8+ {[%clk 0:00:44.8]} 32... Kg7 {[%clk 0:00:40.8]} 33. Qe7
{[%clk 0:00:43.6]} 33... Qg5 {[%clk 0:00:36.3]} 34. Qc7 {[%clk 0:00:31.5]} 34...
Nf3+ {[%clk 0:00:33.9]} 35. Kh1 {[%clk 0:00:29.9]} 35... Nh4 {[%clk 0:00:33.8]}
36. Qxf7+ {[%clk 0:00:29.2]} 36... Kh8 {[%clk 0:00:31.7]} 37. Qg8# {[%clk
0:00:29.2]} 1-0

[Event "Early-Titled-Tuesday-Blitz-April-02-2024"]
[Site "Chess.com"]
[Date "2024.04.02"]
[Round "4"]
[White "BardArtem"]
[Black "Rud_Makarian"]
[Result "0-1"]
[WhiteElo "2845"]
[BlackElo "3026"]
[TimeControl "180+1"]
[EndTime "8:38:10 PDT"]
[Termination "Rud_Makarian won by resignation"]

1. d4 {[%clk 0:03:00.9]} 1... Nf6 {[%clk 0:03:00.2]} 2. Nc3 {[%clk 0:03:00.5]}
2... d6 {[%clk 0:02:59.9]} 3. e4 {[%clk 0:03:00.4]} 3... e5 {[%clk 0:03:00.5]}
4. Nf3 {[%clk 0:02:57.8]} 4... Nbd7 {[%clk 0:03:00.6]} 5. Bc4 {[%clk 0:02:57.9]}
5... Be7 {[%clk 0:03:00.8]} 6. O-O {[%clk 0:02:58.5]} 6... O-O {[%clk
0:03:00.2]} 7. Re1 {[%clk 0:02:58.8]} 7... c6 {[%clk 0:03:00.9]} 8. a4 {[%clk
0:02:58.8]} 8... exd4 {[%clk 0:03:01.6]} 9. Nxd4 {[%clk 0:02:58.5]} 9... Ne5
{[%clk 0:03:02.5]} 10. Ba2 {[%clk 0:02:47.9]} 10... Re8 {[%clk 0:03:00.5]} 11.
h3 {[%clk 0:02:46.1]} 11... Ng6 {[%clk 0:03:00.6]} 12. Nf3 {[%clk 0:02:31.8]}
12... h6 {[%clk 0:02:56.5]} 13. Be3 {[%clk 0:02:28.8]} 13... Bf8 {[%clk
0:02:53.6]} 14. Nd4 {[%clk 0:02:21.7]} 14... Qc7 {[%clk 0:02:22.4]} 15. Qf3
{[%clk 0:02:12.8]} 15... Ne5 {[%clk 0:02:20]} 16. Qg3 {[%clk 0:02:07.5]} 16...
Kh7 {[%clk 0:02:16.9]} 17. Rad1 {[%clk 0:01:58.5]} 17... a6 {[%clk 0:02:14.3]}
18. f3 {[%clk 0:01:29]} 18... b5 {[%clk 0:02:11.3]} 19. Bb3 {[%clk 0:01:29.2]}
19... b4 {[%clk 0:02:00.9]} 20. Nb1 {[%clk 0:01:27.9]} 20... c5 {[%clk
0:01:58.3]} 21. Ne2 {[%clk 0:01:28.2]} 21... c4 {[%clk 0:01:56.8]} 22. Ba2
{[%clk 0:01:28.7]} 22... Bd7 {[%clk 0:01:50.5]} 23. Nf4 {[%clk 0:01:24]} 23...
Bxa4 {[%clk 0:01:39.7]} 24. Qf2 {[%clk 0:01:20.1]} 24... b3 {[%clk 0:01:34.1]}
25. Nc3 {[%clk 0:01:20.4]} 25... bxc2 {[%clk 0:01:26.6]} 26. Rc1 {[%clk
0:01:05.5]} 26... Bb3 {[%clk 0:01:26.9]} 27. Ncd5 {[%clk 0:01:05.9]} 27... Nxd5
{[%clk 0:01:25.4]} 28. Nxd5 {[%clk 0:01:06.8]} 28... Qb7 {[%clk 0:01:22.8]} 29.
Ra1 {[%clk 0:01:03.5]} 29... a5 {[%clk 0:01:15.4]} 30. Qd2 {[%clk 0:00:55.1]}
30... Nd3 {[%clk 0:01:04.5]} 31. Rf1 {[%clk 0:00:53.9]} 31... a4 {[%clk
0:01:03.6]} 32. Kh1 {[%clk 0:00:48.1]} 32... Nxb2 {[%clk 0:00:58.1]} 33. Bxh6
{[%clk 0:00:39.6]} 33... Nd3 {[%clk 0:00:51]} 34. Qg5 {[%clk 0:00:31.6]} 34...
Re6 {[%clk 0:00:46.4]} 35. Qf5+ {[%clk 0:00:20.6]} 35... g6 {[%clk 0:00:44.9]}
0-1

[Event "Early-Titled-Tuesday-Blitz-April-02-2024"]
[Site "Chess.com"]
[Date "2024.04.02"]
[Round "4"]
[White "Kushch_Nikolai"]
[Black "DonCiao"]
[Result "1/2-1/2"]
[WhiteElo "2438"]
[BlackElo "2018"]
[TimeControl "180+1"]
[EndTime "8:38:11 PDT"]
[Termination "Game drawn by agreement"]

1. Nf3 {[%clk 0:02:59.6]} 1... Nf6 {[%clk 0:02:59.6]} 2. c4 {[%clk 0:02:59.6]}
2... g6 {[%clk 0:02:56.5]} 3. d4 {[%clk 0:02:59]} 3... Bg7 {[%clk 0:02:54.7]} 4.
g3 {[%clk 0:02:59.3]} 4... d5 {[%clk 0:02:54.1]} 5. cxd5 {[%clk 0:02:56.6]} 5...
Nxd5 {[%clk 0:02:54.1]} 6. Bg2 {[%clk 0:02:56.9]} 6... Nb6 {[%clk 0:02:53.6]} 7.
O-O {[%clk 0:02:56.4]} 7... Nc6 {[%clk 0:02:53.4]} 8. e3 {[%clk 0:02:52.8]} 8...
O-O {[%clk 0:02:53]} 9. Nc3 {[%clk 0:02:52.9]} 9... Re8 {[%clk 0:02:53.4]} 10.
d5 {[%clk 0:02:52.2]} 10... Na5 {[%clk 0:02:51.6]} 11. e4 {[%clk 0:02:50]} 11...
c6 {[%clk 0:02:50.6]} 12. h3 {[%clk 0:02:48.6]} 12... cxd5 {[%clk 0:02:50.5]}
13. Nxd5 {[%clk 0:02:46]} 13... Be6 {[%clk 0:02:39]} 14. Nxb6 {[%clk 0:02:44.2]}
14... Qxb6 {[%clk 0:02:38.6]} 15. Ng5 {[%clk 0:02:32.3]} 15... Bc4 {[%clk
0:02:37.1]} 16. Re1 {[%clk 0:02:31.7]} 16... Red8 {[%clk 0:02:35]} 17. Qa4
{[%clk 0:02:18.2]} 17... Bb5 {[%clk 0:02:21.3]} 18. Qb4 {[%clk 0:02:11]} 18...
Nc6 {[%clk 0:02:20.9]} 19. Qa3 {[%clk 0:02:04.6]} 19... Nd4 {[%clk 0:02:06.8]}
20. Be3 {[%clk 0:02:01.8]} 20... Qd6 {[%clk 0:01:54.9]} 21. Qxd6 {[%clk
0:02:00.7]} 21... Rxd6 {[%clk 0:01:54.2]} 22. Bxd4 {[%clk 0:01:56.3]} 22... Rxd4
{[%clk 0:01:52.6]} 23. Nf3 {[%clk 0:01:51.7]} 23... Rd3 {[%clk 0:01:50.7]} 24.
Rab1 {[%clk 0:01:46.9]} 24... Rad8 {[%clk 0:01:49.7]} 25. e5 {[%clk 0:01:44.9]}
25... Bc6 {[%clk 0:01:48.2]} 26. Ng5 {[%clk 0:01:42.4]} 26... Bxg2 {[%clk
0:01:46.9]} 27. Kxg2 {[%clk 0:01:42.8]} 27... Rd2 {[%clk 0:01:46.2]} 28. e6
{[%clk 0:01:32.2]} 28... f5 {[%clk 0:01:32]} 29. Nf3 {[%clk 0:01:26.9]} 29...
Rc2 {[%clk 0:01:31.9]} 30. Rec1 {[%clk 0:01:25.7]} 30... Rdc8 {[%clk 0:01:29.7]}
31. Rxc2 {[%clk 0:01:24.9]} 31... Rxc2 {[%clk 0:01:29.5]} 32. b3 {[%clk
0:01:13.9]} 32... Rxa2 {[%clk 0:01:21.8]} 33. Rc1 {[%clk 0:01:13.6]} 33... Bf6
{[%clk 0:01:20.7]} 34. Rc7 {[%clk 0:01:11.9]} 34... b5 {[%clk 0:01:18.2]} 35.
Rb7 {[%clk 0:01:10.5]} 35... a6 {[%clk 0:01:17.9]} 36. g4 {[%clk 0:01:10.8]}
36... fxg4 {[%clk 0:01:14.2]} 37. hxg4 {[%clk 0:01:10.4]} 37... h6 {[%clk
0:01:14.5]} 38. g5 {[%clk 0:01:06.4]} 38... hxg5 {[%clk 0:01:14.1]} 39. Nh2
{[%clk 0:01:06.6]} 39... Bd4 {[%clk 0:01:12.4]} 40. Rxe7 {[%clk 0:01:03.4]}
40... Rxf2+ {[%clk 0:01:12.2]} 41. Kg3 {[%clk 0:01:02.9]} 41... Rf6 {[%clk
0:01:08.3]} 42. Ng4 {[%clk 0:01:02.2]} 42... Rf1 {[%clk 0:01:05.6]} 43. Rd7
{[%clk 0:00:59.2]} 43... Bc5 {[%clk 0:01:03.8]} 44. e7 {[%clk 0:00:55.6]} 44...
Bxe7 {[%clk 0:01:03.4]} 45. Rxe7 {[%clk 0:00:54.8]} 45... Rb1 {[%clk 0:01:02.3]}
46. Re3 {[%clk 0:00:53.1]} 46... a5 {[%clk 0:01:02.5]} 47. Ne5 {[%clk
0:00:53.1]} 47... a4 {[%clk 0:01:02]} 48. bxa4 {[%clk 0:00:52.2]} 48... bxa4
{[%clk 0:01:01.5]} 49. Nc4 {[%clk 0:00:52.2]} 49... Rb3 {[%clk 0:01:00.8]} 50.
Kf3 {[%clk 0:00:48.1]} 50... Rxe3+ {[%clk 0:01:00.7]} 51. Kxe3 {[%clk
0:00:48.3]} 51... Kf7 {[%clk 0:01:00.7]} 52. Ke4 {[%clk 0:00:45]} 52... Kf6
{[%clk 0:01:00.1]} 53. Na3 {[%clk 0:00:43.3]} 53... Ke6 {[%clk 0:00:58.3]} 54.
Nc4 {[%clk 0:00:42.8]} 54... Kf6 {[%clk 0:00:55.3]} 1/2-1/2

[Event "Early-Titled-Tuesday-Blitz-April-02-2024"]
[Site "Chess.com"]
[Date "2024.04.02"]
[Round "4"]
[White "GMAneta"]
[Black "frequentblunders"]
[Result "0-1"]
[WhiteElo "2500"]
[BlackElo "2229"]
[TimeControl "180+1"]
[EndTime "8:38:11 PDT"]
[Termination "frequentblunders won on time"]

1. d4 {[%clk 0:02:59.8]} 1... e6 {[%clk 0:03:00.4]} 2. Nf3 {[%clk 0:02:59.1]}
2... c5 {[%clk 0:03:01.3]} 3. g3 {[%clk 0:02:12.8]} 3... Nf6 {[%clk 0:02:59.9]}
4. Bg2 {[%clk 0:02:10.9]} 4... Nc6 {[%clk 0:02:57.2]} 5. O-O {[%clk 0:02:10.5]}
5... Be7 {[%clk 0:02:50.7]} 6. c4 {[%clk 0:02:06.9]} 6... cxd4 {[%clk
0:02:36.7]} 7. Nxd4 {[%clk 0:02:07.8]} 7... O-O {[%clk 0:02:36.8]} 8. Nc3 {[%clk
0:02:07.3]} 8... h6 {[%clk 0:02:29.8]} 9. b3 {[%clk 0:02:06]} 9... d5 {[%clk
0:02:29.4]} 10. cxd5 {[%clk 0:02:05.3]} 10... exd5 {[%clk 0:02:30.1]} 11. Bb2
{[%clk 0:02:05.3]} 11... Bg4 {[%clk 0:02:22.3]} 12. Rc1 {[%clk 0:02:03.7]} 12...
Qd7 {[%clk 0:02:21.7]} 13. Ncb5 {[%clk 0:02:01]} 13... Rac8 {[%clk 0:02:14.9]}
14. Qd2 {[%clk 0:01:57.7]} 14... Bh3 {[%clk 0:02:11.1]} 15. Rfd1 {[%clk
0:01:55.4]} 15... Bxg2 {[%clk 0:02:10.4]} 16. Kxg2 {[%clk 0:01:56.3]} 16... Ne4
{[%clk 0:02:06]} 17. Qd3 {[%clk 0:01:51.5]} 17... a6 {[%clk 0:01:49.1]} 18. Nxc6
{[%clk 0:01:50.6]} 18... bxc6 {[%clk 0:01:43.8]} 19. Nd4 {[%clk 0:01:50.3]}
19... Rfe8 {[%clk 0:01:28.8]} 20. Rc2 {[%clk 0:01:39.7]} 20... g6 {[%clk
0:01:18]} 21. Nf3 {[%clk 0:01:38.9]} 21... Qe6 {[%clk 0:00:59.6]} 22. Rdc1
{[%clk 0:01:36]} 22... Bf6 {[%clk 0:00:46.4]} 23. Bxf6 {[%clk 0:01:21.8]} 23...
Qxf6 {[%clk 0:00:47.3]} 24. Qxa6 {[%clk 0:01:21.7]} 24... Ng5 {[%clk 0:00:40.4]}
0-1

[Event "Early-Titled-Tuesday-Blitz-April-02-2024"]
[Site "Chess.com"]
[Date "2024.04.02"]
[Round "4"]
[White "IsuruAlahakoon"]
[Black "Ginger_GM"]
[Result "0-1"]
[WhiteElo "2401"]
[BlackElo "2622"]
[TimeControl "180+1"]
[EndTime "8:38:15 PDT"]
[Termination "Ginger_GM won by resignation"]

1. Nf3 {[%clk 0:03:00.9]} 1... f5 {[%clk 0:02:59.5]} 2. d3 {[%clk 0:03:00.6]}
2... Nc6 {[%clk 0:02:59.1]} 3. e4 {[%clk 0:03:00.7]} 3... e5 {[%clk 0:02:58.2]}
4. Nc3 {[%clk 0:02:59.1]} 4... Nf6 {[%clk 0:02:39.4]} 5. exf5 {[%clk 0:02:54.7]}
5... d5 {[%clk 0:02:25]} 6. d4 {[%clk 0:02:54.4]} 6... exd4 {[%clk 0:02:24]} 7.
Nxd4 {[%clk 0:02:54.5]} 7... Nxd4 {[%clk 0:02:23.9]} 8. Qxd4 {[%clk 0:02:55.4]}
8... Bxf5 {[%clk 0:02:23.9]} 9. Bg5 {[%clk 0:02:55]} 9... Bxc2 {[%clk
0:02:20.6]} 10. Qd2 {[%clk 0:02:40.5]} 10... Bg6 {[%clk 0:02:15.6]} 11. O-O-O
{[%clk 0:02:39.3]} 11... c6 {[%clk 0:02:13.9]} 12. Bd3 {[%clk 0:02:33.6]} 12...
Bxd3 {[%clk 0:02:12.4]} 13. Qxd3 {[%clk 0:02:33.1]} 13... Be7 {[%clk 0:02:12.7]}
14. Bxf6 {[%clk 0:02:25.6]} 14... Bxf6 {[%clk 0:02:11.3]} 15. Rhe1+ {[%clk
0:02:25.5]} 15... Kf7 {[%clk 0:02:10.3]} 16. Qf5 {[%clk 0:02:18.8]} 16... Qc8
{[%clk 0:01:42.6]} 17. Qh5+ {[%clk 0:02:14]} 17... g6 {[%clk 0:01:42.6]} 18. Qf3
{[%clk 0:02:12.4]} 18... Qf5 {[%clk 0:01:41.5]} 19. Qxf5 {[%clk 0:01:43.8]}
19... gxf5 {[%clk 0:01:41.5]} 20. Ne2 {[%clk 0:01:44.7]} 20... Rae8 {[%clk
0:01:38.6]} 21. Ng3 {[%clk 0:01:42.6]} 21... Kg6 {[%clk 0:01:37.8]} 22. Ne2
{[%clk 0:01:37.7]} 22... Bg5+ {[%clk 0:01:25.5]} 23. Kc2 {[%clk 0:01:37.9]}
23... h5 {[%clk 0:01:24.9]} 24. f4 {[%clk 0:01:34.4]} 24... Bf6 {[%clk
0:01:24.7]} 25. Rd3 {[%clk 0:01:28.3]} 25... Re4 {[%clk 0:01:21.8]} 26. Rg3+
{[%clk 0:01:23]} 26... Kf7 {[%clk 0:01:21.6]} 27. Rb3 {[%clk 0:00:55]} 27... b6
{[%clk 0:01:14.5]} 28. a4 {[%clk 0:00:50.1]} 28... Rhe8 {[%clk 0:01:13.5]} 29.
Kd2 {[%clk 0:00:50.5]} 29... Bd4 {[%clk 0:01:00.5]} 30. a5 {[%clk 0:00:07.8]}
30... Bf2 {[%clk 0:01:00.2]} 31. axb6 {[%clk 0:00:06.5]} 31... axb6 {[%clk
0:00:59.8]} 32. Ra1 {[%clk 0:00:05.9]} 32... Rxe2+ {[%clk 0:00:59.3]} 33. Kd3
{[%clk 0:00:06.8]} 33... R8e3+ {[%clk 0:00:54.1]} 34. Kd4 {[%clk 0:00:04.8]} 0-1

[Event "Early-Titled-Tuesday-Blitz-April-02-2024"]
[Site "Chess.com"]
[Date "2024.04.02"]
[Round "4"]
[White "chucksterf10"]
[Black "NastyaHn"]
[Result "0-1"]
[WhiteElo "2649"]
[BlackElo "2461"]
[TimeControl "180+1"]
[EndTime "8:38:18 PDT"]
[Termination "NastyaHn won by resignation"]

1. Nc3 {[%clk 0:03:00.9]} 1... e6 {[%clk 0:02:57.2]} 2. d4 {[%clk 0:03:00.9]}
2... d5 {[%clk 0:02:57.3]} 3. Bf4 {[%clk 0:03:01.4]} 3... Nf6 {[%clk 0:02:56.7]}
4. e3 {[%clk 0:03:01]} 4... Bb4 {[%clk 0:02:56.4]} 5. Ne2 {[%clk 0:03:01.7]}
5... Ne4 {[%clk 0:02:56.3]} 6. a3 {[%clk 0:03:00]} 6... Bxc3+ {[%clk 0:02:51.6]}
7. Nxc3 {[%clk 0:02:59.2]} 7... Nxc3 {[%clk 0:02:51.3]} 8. bxc3 {[%clk
0:03:00.1]} 8... c5 {[%clk 0:02:50.4]} 9. c4 {[%clk 0:02:40.4]} 9... Nc6 {[%clk
0:02:42.3]} 10. cxd5 {[%clk 0:02:39.8]} 10... exd5 {[%clk 0:02:41.5]} 11. c3
{[%clk 0:02:37.1]} 11... O-O {[%clk 0:02:34.9]} 12. Bd3 {[%clk 0:02:37.7]} 12...
cxd4 {[%clk 0:02:30.9]} 13. cxd4 {[%clk 0:02:36.5]} 13... Qa5+ {[%clk
0:02:24.2]} 14. Kf1 {[%clk 0:02:32]} 14... Ne7 {[%clk 0:02:02.6]} 15. h4 {[%clk
0:02:29.1]} 15... Bf5 {[%clk 0:02:01.6]} 16. g4 {[%clk 0:02:26.8]} 16... Bxd3+
{[%clk 0:01:58.2]} 17. Qxd3 {[%clk 0:02:27.7]} 17... Rac8 {[%clk 0:01:57.7]} 18.
Kg2 {[%clk 0:02:27]} 18... Qc3 {[%clk 0:01:54.6]} 19. Qb5 {[%clk 0:02:26.8]}
19... Qc6 {[%clk 0:01:51]} 20. Qb1 {[%clk 0:02:24.4]} 20... Qe6 {[%clk
0:01:47.2]} 21. f3 {[%clk 0:02:23]} 21... b6 {[%clk 0:01:45.9]} 22. h5 {[%clk
0:02:22.9]} 22... h6 {[%clk 0:01:44.5]} 23. Qd3 {[%clk 0:02:20.1]} 23... Rc4
{[%clk 0:01:42.6]} 24. Rac1 {[%clk 0:02:19.6]} 24... Rfc8 {[%clk 0:01:42.6]} 25.
Rxc4 {[%clk 0:02:19.7]} 25... Rxc4 {[%clk 0:01:42.5]} 26. Be5 {[%clk 0:02:18.8]}
26... Qc6 {[%clk 0:01:37.7]} 27. g5 {[%clk 0:02:16.4]} 27... Rc2+ {[%clk
0:01:34]} 28. Kg3 {[%clk 0:02:14.6]} 28... Qc3 {[%clk 0:01:30.1]} 29. Qxc3
{[%clk 0:02:12.7]} 29... Rxc3 {[%clk 0:01:30.4]} 30. gxh6 {[%clk 0:02:13.1]}
30... gxh6 {[%clk 0:01:30.6]} 31. Kf4 {[%clk 0:02:13.8]} 31... Kf8 {[%clk
0:00:58.7]} 32. Rg1 {[%clk 0:02:13.3]} 32... Rc6 {[%clk 0:00:53.5]} 33. e4
{[%clk 0:02:06.7]} 33... f6 {[%clk 0:00:46.6]} 34. Bb8 {[%clk 0:02:02.4]} 34...
a5 {[%clk 0:00:40.3]} 35. a4 {[%clk 0:01:56.7]} 35... Kf7 {[%clk 0:00:34.4]} 36.
Rb1 {[%clk 0:01:53.2]} 36... Rc4 {[%clk 0:00:23.9]} 37. Rxb6 {[%clk 0:01:50.1]}
37... Rxd4 {[%clk 0:00:20.5]} 38. Bd6 {[%clk 0:01:50.7]} 38... dxe4 {[%clk
0:00:12.4]} 39. fxe4 {[%clk 0:01:46.2]} 39... Nd5+ {[%clk 0:00:12.1]} 40. Kf5
{[%clk 0:01:41.2]} 40... Nxb6 {[%clk 0:00:12.1]} 41. Bc5 {[%clk 0:01:42.1]}
41... Rxa4 {[%clk 0:00:12.2]} 42. Bxb6 {[%clk 0:01:42.6]} 42... Ra1 {[%clk
0:00:12.3]} 43. Bd4 {[%clk 0:01:42.7]} 43... Rf1+ {[%clk 0:00:12.2]} 44. Kg4
{[%clk 0:01:43.4]} 44... a4 {[%clk 0:00:12.7]} 45. Bc5 {[%clk 0:01:43.7]} 45...
Ra1 {[%clk 0:00:11.8]} 46. Kf3 {[%clk 0:01:42.5]} 46... a3 {[%clk 0:00:11.5]}
47. Kg2 {[%clk 0:01:31.7]} 47... a2 {[%clk 0:00:11.7]} 48. Bd4 {[%clk 0:01:32]}
48... Rd1 {[%clk 0:00:11.8]} 49. Bc3 {[%clk 0:01:32]} 49... a1=Q {[%clk
0:00:11.7]} 50. Bxa1 {[%clk 0:01:32.7]} 50... Rxa1 {[%clk 0:00:12.3]} 51. Kg3
{[%clk 0:01:33.6]} 51... Ke6 {[%clk 0:00:12.6]} 52. Kf4 {[%clk 0:01:34.5]} 52...
Rf1+ {[%clk 0:00:12.6]} 53. Kg4 {[%clk 0:01:35.4]} 53... Ke5 {[%clk 0:00:13]}
54. Kh4 {[%clk 0:01:35.5]} 54... Kxe4 {[%clk 0:00:13.5]} 55. Kg4 {[%clk
0:01:36.4]} 55... f5+ {[%clk 0:00:13.9]} 56. Kh4 {[%clk 0:01:37.3]} 56... f4
{[%clk 0:00:14.4]} 57. Kg4 {[%clk 0:01:37.4]} 57... f3 {[%clk 0:00:14.9]} 58.
Kh3 {[%clk 0:01:38.3]} 58... Rg1 {[%clk 0:00:13.4]} 59. Kh2 {[%clk 0:01:38.7]}
59... f2 {[%clk 0:00:13.7]} 60. Kh3 {[%clk 0:01:38.8]} 60... f1=Q+ {[%clk
0:00:13.8]} 61. Kh4 {[%clk 0:01:39.7]} 61... Qf4+ {[%clk 0:00:14]} 0-1